fUSD/lending_fUSD_20250214
["ID","MTS","AMOUNT","RATE_DAILY","PERIOD"]
[353065057,1739538640954,-1109.0,0.00012977,2]
[353065059,1739538640963,-550.0,0.00013,2]
[353065061,1739538640972,-166.69,0.00013221,2]
[353065063,1739538640981,-173.64,0.00013288,2]
[353065065,1739538640991,-200.0,0.000135,4]
[353065067,1739538641000,-676.37562334,0.00013598,2]
[353065069,1739538641009,-153.8501447,0.00013598,2]
[353065071,1739538641018,-500.0,0.000136,4]
[353065073,1739538641028,-336.35,0.00013615,2]
[353065075,1739538641037,-1112.23777865,0.00013678,2]
[353065077,1739538641046,-308.97180083,0.00013678,2]
[353065079,1739538641055,-500.0,0.00013698,2]
[353065081,1739538641067,-500.0,0.00013698,2]
[353065083,1739538641078,-500.0,0.00013698,2]
[353065085,1739538641087,-500.0,0.00013698,2]
[353065087,1739538641097,-69.60126072,0.00013698,2]
[353065090,1739538641113,-430.39873928,0.00013698,2]
[353065092,1739538641123,-500.0,0.00013698,2]
[353065094,1739538641133,-500.0,0.00013698,2]
[353065096,1739538641142,-500.0,0.00013698,2]
[353065098,1739538641152,-500.0,0.00013698,2]
[353065100,1739538641162,-500.0,0.00013698,2]
[353065102,1739538641171,-500.0,0.00013698,2]
[353065104,1739538641180,-500.0,0.00013698,7]
[353065106,1739538641190,-500.0,0.00013698,2]
[353065108,1739538641199,-864.66,0.00013698,2]
[353065110,1739538641208,-500.0,0.00013698,2]
[353065112,1739538641217,-530.79291273,0.00013698,2]
[353065125,1739538641334,-47.67708727,0.00013698,2]
[353065127,1739538641344,-787.71,0.00013698,2]
[353065129,1739538641360,-104.89865656,0.00013698,2]
[353065133,1739538641393,-395.10134344,0.00013698,2]
[353065135,1739538641404,-212.54540661,0.00013698,2]
[353065137,1739538641415,-287.45459339,0.00013698,2]
[353065139,1739538641425,-500.0,0.00013698,2]
[353065141,1739538641434,-806.47,0.00013698,2]
[353065143,1739538641443,-500.0,0.00013698,2]
[353065145,1739538641452,-500.0,0.00013698,2]
[353065147,1739538641461,-500.0,0.00013698,2]
[353065149,1739538641470,-500.0,0.00013698,2]
[353065151,1739538641479,-176.46771425,0.00013698,2]
[353065154,1739538641491,-323.53228575,0.00013698,2]
[353065156,1739538641501,-500.0,0.00013698,2]
[353065158,1739538641510,-500.0,0.00013698,2]
[353065160,1739538641519,-500.0,0.00013698,2]
[353065162,1739538641528,-500.0,0.00013698,2]
[353065163,1739538641537,-500.0,0.00013698,2]
[353065165,1739538641547,-500.0,0.00013698,2]
[353065168,1739538641556,-500.0,0.00013698,2]
[353065170,1739538641565,-109.83235369,0.00013698,2]
[353065172,1739538641576,-390.16764631,0.00013698,2]
[353065174,1739538641585,-500.0,0.00013698,2]
[353065176,1739538641594,-500.0,0.00013698,2]
[353065178,1739538641603,-349.92376055,0.00013698,2]
[353065180,1739538641615,-150.07623945,0.00013698,2]
[353065182,1739538641624,-500.0,0.00013698,2]
[353065184,1739538641633,-500.0,0.00013698,2]
[353065186,1739538641642,-500.0,0.00013698,2]
[353065188,1739538641651,-122.95419103,0.00013698,2]
[353065192,1739538641676,-377.04580897,0.00013698,2]
[353065193,1739538641686,-26.90344102,0.00013698,2]
[353065216,1739538641886,-564.84655898,0.00013698,2]
[353065218,1739538641895,-477.63780291,0.00013698,2]
[353065220,1739538641904,-500.0,0.00013698,2]
[353065222,1739538641913,-500.0,0.00013698,2]
[353065224,1739538641923,-500.0,0.00013698,2]
[353065226,1739538641932,-500.0,0.00013698,2]
[353065228,1739538641941,-500.0,0.00013698,2]
[353065230,1739538641950,-526.45,0.00013698,2]
[353065232,1739538641959,-500.0,0.00013698,2]
[353065234,1739538641968,-500.0,0.00013698,2]
[353065236,1739538641977,-500.0,0.00013698,2]
[353065238,1739538641986,-500.0,0.00013698,2]
[353065240,1739538641996,-500.0,0.00013698,2]
[353065242,1739538642005,-500.0,0.00013698,2]
[353065244,1739538642014,-239.93394505,0.00013698,2]
[353065246,1739538642023,-500.0,0.00013698,2]
[353065248,1739538642032,-207.64694521,0.00013698,2]
[353065251,1739538642055,-292.35305479,0.00013698,2]
[353065253,1739538642064,-351.73167199,0.00013698,2]
[353065311,1739538642565,-285.89832801,0.00013698,2]
[353065313,1739538642575,-637.63,0.00013698,2]
[353065315,1739538642584,-637.63,0.00013698,2]
[353065317,1739538642593,-637.63,0.00013698,2]
[353065319,1739538642602,-500.0,0.00013698,2]
[353065321,1739538642612,-500.0,0.00013698,2]
[353065323,1739538642621,-500.0,0.00013698,2]
[353065325,1739538642631,-500.0,0.00013698,2]
[353065327,1739538642641,-500.0,0.00013698,2]
[353065329,1739538642650,-450.48587726,0.00013698,2]
[353065331,1739538642659,-500.0,0.00013698,2]
[353065333,1739538642668,-500.0,0.00013698,2]
[353065335,1739538642677,-588.3090162,0.00013698,2]
[353065337,1739538642686,-500.0,0.00013698,2]
[353065339,1739538642695,-500.0,0.00013698,2]
[353065341,1739538642704,-500.0,0.00013698,2]
[353065343,1739538642714,-500.0,0.00013698,2]
[353065345,1739538642723,-500.0,0.00013698,2]
[353065347,1739538642732,-500.0,0.00013698,2]
[353065349,1739538642742,-500.0,0.00013698,2]
[353065351,1739538642751,-500.0,0.00013698,2]
[353065353,1739538642761,-500.0,0.00013698,2]
[353065355,1739538642771,-500.0,0.00013698,2]
[353065357,1739538642780,-248.15,0.00013698,2]
[353065359,1739538642789,-528.3,0.00013698,2]
[353065361,1739538642799,-500.0,0.00013698,2]
[353065363,1739538642808,-500.0,0.00013698,2]
[353065365,1739538642820,-500.0,0.00013698,2]
[353065367,1739538642829,-500.0,0.00013698,2]
[353065369,1739538642838,-880.08,0.00013698,2]
[353065371,1739538642848,-500.0,0.00013698,2]
[353065373,1739538642859,-560.73,0.00013698,2]
[353065375,1739538642868,-500.0,0.00013698,2]
[353065377,1739538642878,-500.0,0.00013698,2]
[353065379,1739538642888,-500.0,0.00013698,2]
[353065381,1739538642898,-500.0,0.00013698,2]
[353065383,1739538642907,-512.98,0.00013698,2]
[353065385,1739538642917,-500.0,0.00013698,2]
[353065387,1739538642926,-500.0,0.00013698,2]
[353065389,1739538642935,-500.0,0.00013698,2]
[353065391,1739538642946,-500.0,0.00013698,2]
[353065393,1739538642955,-695.67,0.00013698,2]
[353065395,1739538642965,-500.0,0.00013698,2]
[353065397,1739538642974,-500.0,0.00013698,2]
[353065399,1739538642983,-500.0,0.00013698,2]
[353065401,1739538642993,-500.0,0.00013698,2]
[353065403,1739538643002,-500.0,0.00013698,2]
[353065405,1739538643011,-500.0,0.00013698,2]
[353065407,1739538643021,-500.0,0.00013698,2]
[353065409,1739538643030,-500.0,0.00013698,2]
[353065411,1739538643040,-354.75953096,0.00013698,2]
[353065412,1739538643053,-145.24046904,0.00013698,2]
[353065413,1739538643063,-500.0,0.00013698,2]
[353065416,1739538643074,-103.39183669,0.00013698,2]
[353065419,1739538643085,-396.60816331,0.00013698,2]
[353065422,1739538643095,-14.41709966,0.00013698,2]
[353065429,1739538643151,-138.98775407,0.00013698,2]
[353065432,1739538643161,-500.0,0.00013698,2]
[353065435,1739538643170,-500.0,0.00013698,2]
[353065438,1739538643180,-500.0,0.00013698,2]
[353065441,1739538643189,-324.41653761,0.00013698,2]
[353065669,1739538645383,-175.58346239,0.00013698,2]
[353065671,1739538645392,-239.28390372,0.00013698,2]
[353065673,1739538645494,-260.71609628,0.00013698,2]
[353065674,1739538645503,-500.0,0.00013698,2]
[353065675,1739538645512,-181.81428024,0.00013698,2]
[353066220,1739539018127,-1000.0,8.851e-05,2]
[353066221,1739539018150,-200.0,8.912e-05,2]
[353066222,1739539018171,-300.0,8.972e-05,2]
[353066223,1739539018192,-1241.1477,8.973e-05,2]
[353066224,1739539018215,-2830.8523,8.973e-05,2]
[353066245,1739539555309,4190.49229587,6.94e-05,2]
[353066273,1739539831605,-459.3143,8.973e-05,2]
[353066274,1739539831615,-452.34764404,9e-05,2]
[353066275,1739539831626,-200.0,9.736e-05,2]
[353066276,1739539831636,-9662.71064048,9.828e-05,2]
[353066277,1739539831645,-300.0,9.9e-05,3]
[353066278,1739539831657,-1001.35714676,9.979e-05,2]
[353066279,1739539831667,-369.5758553,9.979e-05,2]
[353066280,1739539831676,-150.0,9.979e-05,2]
[353066281,1739539831686,-1149.70748857,9.98e-05,2]
[353066282,1739539831704,-840.0,9.98e-05,2]
[353066283,1739539834996,-335.73,9.98e-05,2]
[353066284,1739539835007,-717502.37920828,9.98e-05,2]
[353066285,1739539835017,-500.0,9.99e-05,2]
[353066286,1739539835026,-500.0,9.99e-05,2]
[353066287,1739539835035,-337738.11187412,0.0001,2]
[353066554,1739539837646,-3379.26028201,0.0001,2]
[353066768,1739539840082,-576.66609,0.0001,2]
[353067232,1739539845877,-10853.251987,0.0001,2]
[353067409,1739539991347,222.0,0.0002,120]
[353067410,1739540049833,7380.0,0.00020801,60]
[353067412,1739540180736,-5000.0,8.973e-05,2]
[353067413,1739540180760,-572.2958,8.973e-05,2]
[353067414,1739540180785,-180.45539977,8.973e-05,2]
[353067432,1739540385386,-200.0,0.00013699,7]
[353067433,1739540405318,-2175.67435239,0.0001421,7]
[353067434,1739540642167,34949.0,8.836e-05,11]
[353067435,1739540839584,200.0,0.00013699,7]
[353067443,1739540899870,500.0,0.0002,120]
[353067447,1739540972499,1000.0,0.0002,120]
[353067450,1739541009774,500.0,0.00014,7]
[353067459,1739541031718,-283.7133,8.836e-05,2]
[353067460,1739541031727,-200.0,8.985e-05,2]
[353067461,1739541031736,-1134.87,9.431e-05,2]
[353067462,1739541031745,-200.0,9.719e-05,2]
[353067463,1739541031754,-200.0,9.719e-05,2]
[353067464,1739541031764,-500.0,9.732e-05,2]
[353067465,1739541031773,-4192.121233,9.922e-05,2]
[353067466,1739541031782,-150.0,9.973e-05,2]
[353067467,1739541031791,-1000.0,9.979e-05,2]
[353067468,1739541031800,-1000.0,9.979e-05,2]
[353067469,1739541031809,-693.9123177,9.979e-05,2]
[353067470,1739541031818,-689.49227309,9.999e-05,2]
[353067471,1739541031827,-150.0,9.999e-05,2]
[353067472,1739541031836,-274949.59462299,0.0001,2]
[353067473,1739541031845,-118253.61692329,0.0001,2]
[353067474,1739541031854,-180.21809162,0.0001,2]
[353067475,1739541031863,-166.69,0.00010019,2]
[353067476,1739541031874,-154.14,0.00010137,2]
[353067477,1739541031883,-431.95362761,0.00010258,2]
[353067478,1739541031892,-973.1059,0.0001029,2]
[353067479,1739541031901,-973.10591,0.0001041,2]
[353067480,1739541031910,-973.10591,0.0001057,2]
[353067481,1739541031923,-200.0,0.00010607,2]
[353067482,1739541031933,-407.16,0.00010702,2]
[353067483,1739541031942,-973.10591,0.0001073,2]
[353067484,1739541031953,-23900.0,0.0001074,2]
[353067485,1739541031964,-317.59021252,0.00010759,2]
[353067486,1739541031973,-1000.0,0.00010859,2]
[353067487,1739541031982,-973.10591,0.0001088,2]
[353067488,1739541031992,-170.86501625,0.000109,2]
[353067489,1739541032001,-422.98,0.00010903,2]
[353067490,1739541032010,-12749.792552,0.00010904,2]
[353067491,1739541032020,-335.94,0.00011023,3]
[353067492,1739541032029,-300.0,0.00011024,2]
[353067493,1739541032039,-973.10591,0.0001105,2]
[353067494,1739541032048,-2000.0,0.00011054,2]
[353067495,1739541032057,-4473.36672301,0.00011099,2]
[353067496,1739541032067,-4473.366723,0.00011099,2]
[353067497,1739541032075,-4473.366723,0.00011099,2]
[353067498,1739541032085,-1282.28481372,0.00011099,2]
[353067499,1739541032096,-1282.28481372,0.00011188,2]
[353067500,1739541032105,-4473.366723,0.00011188,2]
[353067501,1739541032115,-1000.0,0.00011248,2]
[353067502,1739541032125,-639.93,0.00011281,2]
[353067503,1739541032134,-150.99,0.00011281,2]
[353067505,1739541032143,-3491.95,0.00011281,2]
[353067507,1739541032152,-2074.55,0.00011281,2]
[353067509,1739541032161,-1878.09,0.00011281,2]
[353067511,1739541032170,-150.99,0.00011281,2]
[353067512,1739541032180,-999.99,0.00011281,2]
[353067515,1739541032190,-9999.99,0.00011281,2]
[353067516,1739541032199,-6610.47,0.00011281,2]
[353067518,1739541032208,-480.82,0.00011281,2]
[353067521,1739541032217,-9999.99,0.00011281,2]
[353067522,1739541032226,-299.99,0.00011281,2]
[353067524,1739541032235,-250.0,0.00011326,2]
[353067526,1739541032244,-194.18,0.0001133,2]
[353067528,1739541032254,-170.86501624,0.00011379,2]
[353067531,1739541032263,-315.13,0.0001149,2]
[353067533,1739541032272,-1500.0,0.00011505,2]
[353067534,1739541032281,-180.9,0.00011565,2]
[353067536,1739541032291,-1896.49,0.00011576,2]
[353067538,1739541032300,-943.42,0.00011576,2]
[353067541,1739541032309,-1282.28481372,0.00011617,2]
[353067543,1739541032318,-4473.366723,0.00011617,2]
[353067545,1739541032328,-250.0,0.00011675,2]
[353067547,1739541032337,-1134.87,0.00011695,2]
[353067548,1739541032347,-2114.06720039,0.00011872,2]
[353067549,1739541032356,-166.69,0.00011891,2]
[353067550,1739541032364,-407.16,0.0001204,2]
[353067551,1739541032374,-1282.28481372,0.00012046,2]
[353067552,1739541032383,-4473.366723,0.00012046,2]
[353067553,1739541032392,-1000.0,0.00012217,2]
[353067554,1739541032401,-150.0,0.00012304,2]
[353067555,1739541032410,-150.0,0.00012304,2]
[353067556,1739541032419,-150.0,0.00012304,2]
[353067557,1739541032430,-150.50178747,0.00012304,2]
[353067558,1739541032439,-1282.28481372,0.00012475,2]
[353067559,1739541032448,-4473.366723,0.00012475,2]
[353067560,1739541032458,-30000.0,0.00012536,2]
[353067561,1739541032467,-161.42,0.00012612,2]
[353067562,1739541032476,-161.42,0.00012628,2]
[353067563,1739541032485,-161.42,0.00012644,2]
[353067564,1739541032494,-161.42,0.00012659,2]
[353067565,1739541032504,-161.42,0.00012675,2]
[353067566,1739541032513,-161.09,0.0001268,2]
[353067567,1739541032522,-2114.06720039,0.00012859,2]
[353067568,1739541032531,-170.86501624,0.00012859,2]
[353067569,1739541032540,-1282.28481372,0.00012905,2]
[353067570,1739541032550,-4473.366723,0.00012905,2]
[353067571,1739541032559,-315.13,0.00012926,2]
[353067572,1739541032569,-550.0,0.00013,2]
[353067573,1739541032578,-500.0,0.000133,4]
[353067574,1739541032587,-317.59021252,0.0001333,2]
[353067575,1739541032596,-1282.28481372,0.00013334,2]
[353067576,1739541032606,-4473.366723,0.00013334,2]
[353067577,1739541032615,-1273.0,0.00013347,2]
[353067578,1739541032624,-2025.0,0.00013347,2]
[353067579,1739541032633,-309.682,0.00013347,2]
[353067580,1739541032642,-569.0,0.00013347,2]
[353067581,1739541032652,-1922.88,0.00013347,2]
[353067582,1739541032661,-3915.0,0.00013347,2]
[353067583,1739541032671,-150.0,0.00013347,2]
[353067584,1739541032805,-1109.0,0.00013347,2]
[353067585,1739541032815,-407.16,0.00013377,2]
[353067586,1739541032825,-1100.0,0.000134,4]
[353067587,1739541032834,-1600.0,0.000135,4]
[353067588,1739541032844,-337.69,0.00013561,2]
[353067589,1739541032853,-1000.0,0.00013574,2]
[353067590,1739541032863,-175.94871696,0.00013598,2]
[353067591,1739541032875,-478.51441232,0.00013598,2]
[353067592,1739541032885,-825.75924026,0.00013598,2]
[353067593,1739541032895,-207.13291084,0.00013598,2]
[353067594,1739541032904,-6117.43201376,0.00013598,2]
[353067595,1739541032915,-174.26901285,0.00013598,2]
[353067596,1739541032925,-2200.0,0.000136,4]
[353067597,1739541032935,-165.06157355,0.00013673,2]
[353067598,1739541032944,-500.0,0.00013673,2]
[353067599,1739541032955,-500.0,0.00013673,2]
[353067600,1739541032965,-202.73622945,0.00013688,2]
[353067601,1739541032975,-66228.28763366,0.00013695,2]
[353067602,1739541033032,-440.12893311,0.00013695,2]
[353067603,1739541033044,-5931.4585626,0.00013695,2]
[353067604,1739541033056,-1305.0,0.00013695,2]
[353067605,1739541033087,-55046.80788943,0.00013695,2]
[353067606,1739541033139,-894.241065,0.00013695,2]
[353067607,1739541033151,-277.9276,0.00013695,2]
[353067608,1739541033182,-4540.42646416,0.00013695,2]
[353067620,1739541037755,-150.0,0.00013347,2]
[353067621,1739541037764,-123735.33099989,0.00013695,2]
[353067622,1739541037834,-1587.15689451,0.00013695,2]
[353067623,1739541037853,-6814.41136785,0.00013695,2]
[353067624,1739541037935,-1012.52293924,0.00013695,2]
[353067625,1739541037957,-2700.0,0.00013695,2]
[353067812,1739541039774,-150.0,0.00013347,2]
[353067814,1739541039789,-967.5422364,0.00013695,2]
[353067826,1739541039889,-10403.0165413,0.00013695,2]
[353067848,1739541040057,-487.05933866,0.00013695,2]
[353067854,1739541040136,-2295.13284,0.00013695,2]
[353067871,1739541040289,-153.8501447,0.000109,2]
[353067873,1739541040298,-84892.33405623,0.00013695,2]
[353067876,1739541040308,-267.23072757,0.00013695,2]
[353067879,1739541040318,-151.0,0.00013696,2]
[353067881,1739541040331,-151.0,0.00013696,2]
[353067883,1739541040341,-1710.49,0.00013696,2]
[353067885,1739541040350,-151.0,0.00013696,2]
[353067887,1739541040360,-151.0,0.00013696,2]
[353067889,1739541040369,-151.0,0.00013696,2]
[353067891,1739541040378,-151.0,0.00013696,2]
[353067893,1739541040387,-151.0,0.00013696,2]
[353067895,1739541040397,-403.564355,0.00013696,2]
[353067897,1739541040406,-272.706242,0.00013696,2]
[353067899,1739541040416,-403.564355,0.00013696,2]
[353067901,1739541040425,-272.706242,0.00013696,2]
[353067903,1739541040435,-151.0,0.00013696,2]
[353067905,1739541040445,-151.0,0.00013696,2]
[353067907,1739541040455,-151.0,0.00013696,2]
[353067909,1739541040464,-151.0,0.00013696,2]
[353067911,1739541040474,-151.0,0.00013696,2]
[353067913,1739541040484,-175.875336,0.00013696,2]
[353067915,1739541040494,-182.175036,0.00013696,2]
[353067917,1739541040503,-175.875336,0.00013696,2]
[353067919,1739541040512,-182.175036,0.00013696,2]
[353067921,1739541040521,-151.0,0.00013696,2]
[353067923,1739541040531,-151.0,0.00013696,2]
[353067925,1739541040540,-1006.0,0.00013696,2]
[353067927,1739541040550,-1008.99495767,0.00013697,3]
[353067929,1739541040560,-151.0,0.00013697,2]
[353067931,1739541040569,-151.0,0.00013697,2]
[353067933,1739541040578,-151.0,0.00013697,2]
[353067935,1739541040587,-151.0,0.00013697,2]
[353067937,1739541040596,-151.0,0.00013697,2]
[353067939,1739541040605,-151.0,0.00013697,2]
[353067941,1739541040614,-151.0,0.00013697,2]
[353067943,1739541040623,-151.0,0.00013697,2]
[353067945,1739541040633,-151.0,0.00013697,2]
[353067947,1739541040642,-151.0,0.00013697,2]
[353067949,1739541040652,-225.126143,0.00013697,2]
[353067951,1739541040662,-152.644703,0.00013697,2]
[353067953,1739541040670,-151.0,0.00013697,2]
[353067955,1739541040680,-175.888067,0.00013697,2]
[353067957,1739541040690,-151.0,0.00013697,2]
[353067959,1739541040699,-331.212938,0.00013697,2]
[353067961,1739541040708,-331.212938,0.00013697,2]
[353067963,1739541040717,-274.18371666,0.00013698,3]
[353067965,1739541040726,-2137099.90076457,0.00013698,3]
[353067967,1739541040735,-501.02575943,0.00013698,2]
[353067969,1739541040744,-500.70752509,0.00013698,2]
[353067971,1739541040753,-501.1776116,0.00013698,2]
[353067973,1739541040763,-500.0,0.00013698,2]
[353067975,1739541040774,-501.56351855,0.00013698,2]
[353067977,1739541040783,-500.0,0.00013698,2]
[353067979,1739541040792,-502.37992106,0.00013698,2]
[353067981,1739541040801,-500.0,0.00013698,2]
[353067983,1739541040810,-500.0,0.00013698,2]
[353067985,1739541040819,-256.04470916,0.00013698,2]
[353067987,1739541040829,-500.0,0.00013698,2]
[353067989,1739541040838,-500.0,0.00013698,2]
[353067991,1739541040847,-500.0,0.00013698,2]
[353067993,1739541040858,-508.49289406,0.00013698,2]
[353067995,1739541040871,-513.02276663,0.00013698,2]
[353067997,1739541040883,-502.38394038,0.00013698,2]
[353068000,1739541040892,-509.62798422,0.00013698,2]
[353068002,1739541040901,-500.0,0.00013698,2]
[353068003,1739541040910,-500.0,0.00013698,2]
[353068005,1739541040919,-500.0,0.00013698,2]
[353068008,1739541040929,-500.0,0.00013698,2]
[353068009,1739541040939,-500.0,0.00013698,2]
[353068011,1739541040948,-500.0,0.00013698,2]
[353068013,1739541040957,-500.0,0.00013698,2]
[353068015,1739541040967,-500.0,0.00013698,2]
[353068017,1739541040976,-500.0,0.00013698,2]
[353068019,1739541040986,-505.44999979,0.00013698,2]
[353068021,1739541040996,-769.83,0.00013698,2]
[353068023,1739541041006,-862.06,0.00013698,2]
[353068025,1739541041015,-500.0,0.00013698,2]
[353068027,1739541041024,-500.0,0.00013698,2]
[353068029,1739541041033,-500.0,0.00013698,2]
[353068031,1739541041042,-502.33841406,0.00013698,2]
[353068033,1739541041052,-616.25,0.00013698,2]
[353068035,1739541041061,-622.5,0.00013698,2]
[353068037,1739541041070,-500.0,0.00013698,2]
[353068039,1739541041079,-502.96300585,0.00013698,2]
[353068041,1739541041088,-606.89,0.00013698,2]
[353068043,1739541041097,-502.33707918,0.00013698,2]
[353068045,1739541041105,-501.28541093,0.00013698,2]
[353068047,1739541041114,-500.0,0.00013698,2]
[353068049,1739541041124,-838.11,0.00013698,2]
[353068051,1739541041133,-500.0,0.00013698,2]
[353068053,1739541041142,-700.0,0.00013698,2]
[353068055,1739541041151,-500.0,0.00013698,2]
[353068057,1739541041160,-504.11621718,0.00013698,2]
[353068059,1739541041169,-500.0,0.00013698,2]
[353068061,1739541041178,-500.0,0.00013698,2]
[353068063,1739541041188,-500.0,0.00013698,2]
[353068065,1739541041197,-502.66521603,0.00013698,2]
[353068067,1739541041206,-500.0,0.00013698,2]
[353068069,1739541041215,-500.0,0.00013698,2]
[353068071,1739541041224,-500.0,0.00013698,2]
[353068073,1739541041233,-500.0,0.00013698,2]
[353068075,1739541041242,-576.98,0.00013698,2]
[353068077,1739541041251,-500.0,0.00013698,2]
[353068079,1739541041261,-500.0,0.00013698,2]
[353068081,1739541041270,-500.0,0.00013698,2]
[353068083,1739541041279,-500.0,0.00013698,2]
[353068085,1739541041288,-608.57,0.00013698,2]
[353068087,1739541041297,-501.39574462,0.00013698,2]
[353068089,1739541041306,-500.0,0.00013698,2]
[353068091,1739541041315,-623.04408124,0.00013698,2]
[353068093,1739541041324,-504.35032319,0.00013698,2]
[353068095,1739541041334,-798.45,0.00013698,2]
[353068097,1739541041343,-500.0,0.00013698,2]
[353068099,1739541041352,-500.0,0.00013698,2]
[353068101,1739541041361,-500.0,0.00013698,2]
[353068103,1739541041372,-502.57302255,0.00013698,2]
[353068105,1739541041381,-507.11396285,0.00013698,2]
[353068107,1739541041390,-730.74,0.00013698,2]
[353068109,1739541041399,-500.0,0.00013698,2]
[353068111,1739541041408,-502.36504596,0.00013698,2]
[353068113,1739541041418,-784.96,0.00013698,2]
[353068115,1739541041427,-505.2264475,0.00013698,2]
[353068117,1739541041437,-508.42,0.00013698,2]
[353068119,1739541041446,-500.0,0.00013698,2]
[353068121,1739541041455,-500.0,0.00013698,2]
[353068123,1739541041464,-500.0,0.00013698,2]
[353068125,1739541041474,-500.0,0.00013698,2]
[353068127,1739541041483,-500.0,0.00013698,2]
[353068129,1739541041492,-540.38,0.00013698,2]
[353068131,1739541041502,-505.20854359,0.00013698,2]
[353068133,1739541041511,-693.53,0.00013698,2]
[353068135,1739541041520,-522.49,0.00013698,2]
[353068137,1739541041529,-494.86143416,0.00013698,2]
[353068139,1739541041538,-500.0,0.00013698,2]
[353068141,1739541041547,-560.31701382,0.00013698,2]
[353068143,1739541041558,-500.0,0.00013698,2]
[353068145,1739541041567,-536.9,0.00013698,2]
[353068148,1739541041577,-517.87271797,0.00013698,2]
[353068150,1739541041586,-503.86297631,0.00013698,2]
[353068151,1739541041595,-500.0,0.00013698,2]
[353068153,1739541041604,-500.0,0.00013698,2]
[353068155,1739541041614,-928.68,0.00013698,2]
[353068157,1739541041623,-500.0,0.00013698,2]
[353068160,1739541041632,-784.66,0.00013698,2]
[353068162,1739541041642,-520.48164836,0.00013698,2]
[353068164,1739541041651,-1166.69,0.00013698,2]
[353068165,1739541041660,-563.6483331,0.00013698,2]
[353068167,1739541041669,-500.0,0.00013698,2]
[353068170,1739541041679,-500.0,0.00013698,2]
[353068172,1739541041688,-503.72147044,0.00013698,2]
[353068173,1739541041698,-503.6375263,0.00013698,2]
[353068176,1739541041707,-500.0,0.00013698,2]
[353068177,1739541041716,-340.84518084,0.00013698,2]
[353068180,1739541041726,-500.0,0.00013698,2]
[353068182,1739541041735,-500.0,0.00013698,2]
[353068184,1739541041745,-500.0,0.00013698,2]
[353068186,1739541041754,-500.0,0.00013698,2]
[353068187,1739541041763,-500.0,0.00013698,2]
[353068190,1739541041773,-500.0,0.00013698,2]
[353068192,1739541041782,-622.59,0.00013698,2]
[353068194,1739541041792,-626.74,0.00013698,2]
[353068196,1739541041801,-500.0,0.00013698,2]
[353068197,1739541041810,-917.92,0.00013698,2]
[353068200,1739541041819,-500.0,0.00013698,2]
[353068201,1739541041828,-501.60397595,0.00013698,2]
[353068203,1739541041837,-153.464645,0.00013698,2]
[353068205,1739541041847,-697.53,0.00013698,2]
[353068207,1739541041856,-504.21161237,0.00013698,2]
[353068209,1739541041865,-200.0,0.00013698,2]
[353068211,1739541041877,-500.6453102,0.00013698,2]
[353068213,1739541041887,-635.78,0.00013698,2]
[353068215,1739541041897,-500.0,0.00013698,2]
[353068217,1739541041907,-505.94433179,0.00013698,2]
[353068220,1739541041917,-595.13,0.00013698,2]
[353068221,1739541041926,-500.0,0.00013698,2]
[353068224,1739541041937,-500.0,0.00013698,2]
[353068226,1739541041946,-505.60284925,0.00013698,2]
[353068227,1739541041958,-502.1086805,0.00013698,2]
[353068230,1739541041974,-500.0,0.00013698,2]